bitfinex-derivatives/quotes_SOLF0:USTF0_20240913
["timestamp","ask_amount","ask_price","bid_price","bid_amount"]
[1726222043258,3.362,133.85,133.83,1.3287]
[1726222043561,17.91,133.88,133.83,1.3287]
[1726222044372,3.3616,133.86,133.83,4.6909]
[1726222047167,3.3618,133.85,133.83,4.6909]
[1726222047753,3.3618,133.85,133.82,4.7224]
[1726222048464,3.362,133.84,133.82,4.7224]
[1726222048854,3.3623,133.83,133.82,1.36]
[1726222050564,3.3622,133.84,133.82,1.36]
[1726222052872,3.3622,133.84,133.82,4.7224]
[1726222053273,3.3619,133.85,133.82,4.7224]
[1726222053669,3.3619,133.85,133.83,3.3622]
[1726222055171,3.3619,133.85,133.82,4.7224]
[1726222055373,3.3621,133.84,133.82,1.36]
[1726222055567,17.91,133.86,133.82,1.36]
[1726222055767,17.91,133.85,133.79,1.3771]
[1726222056473,3.3624,133.83,133.79,4.7402]
[1726222057060,3.3626,133.82,133.79,4.7402]
[1726222057666,17.91,133.83,133.75,17.91]
[1726222058772,17.91,133.81,133.74,1.3757]
[1726222058970,3.66345147,133.85,133.74,1.3757]
[1726222058971,17.91,133.8,133.74,1.3757]
[1726222059276,17.91,133.8,133.73,1.3631]
[1726222059673,17.91,133.78,133.73,1.3631]
[1726222060677,3.3642,133.76,133.73,4.7278]
[1726222061270,3.3642,133.76,133.73,1.3631]
[1726222061764,3.3644,133.75,133.73,1.3631]
[1726222061964,21.59688757,133.78,133.71,3.3652]
[1726222062173,3.3651,133.72,133.68,17.91]
[1726222062370,17.91,133.76,133.68,17.91]
[1726222062582,17.91,133.76,133.69,3.3657]
[1726222062778,3.3649,133.73,133.69,3.3657]
[1726222062973,3.3649,133.73,133.68,17.91]
[1726222063376,3.3649,133.73,133.7,3.3654]
[1726222063873,17.91,133.76,133.71,3.3653]
[1726222063874,3.3646,133.74,133.71,3.3653]
[1726222064075,17.91,133.76,133.68,17.91]
[1726222064272,17.91,133.78,133.7,17.91]
[1726222064473,6.7236,133.85,133.74,3.3643]
[1726222064474,3.3638,133.77,133.74,3.3643]
[1726222070282,3.364,133.76,133.74,3.3643]
[1726222070484,3.364,133.76,133.73,4.7833]
[1726222072787,3.3643,133.75,133.73,1.4186]
[1726222072977,17.91,133.78,133.73,1.4186]
[1726222073906,3.3644,133.75,133.73,1.4186]
[1726222074976,3.3645,133.74,133.73,1.4186]
[1726222076289,3.3644,133.75,133.73,1.4186]
[1726222076986,3.3642,133.76,133.73,4.7833]
[1726222077382,17.91,133.78,133.73,1.4186]
[1726222077591,3.3644,133.75,133.73,1.4186]
[1726222080296,14.8644,133.75,133.73,1.4186]
[1726222080688,3.74831583,133.8,133.73,1.4186]
[1726222080994,11.5,133.76,133.73,1.4186]
[1726222081788,3.3644,133.75,133.73,1.4186]
[1726222083683,14.8641,133.76,133.73,4.7833]
[1726222083885,14.8641,133.76,133.73,1.4186]
[1726222084488,3.3643,133.75,133.73,1.4186]
[1726222085793,14.8643,133.75,133.73,1.4186]
[1726222087198,3.3645,133.74,133.73,1.4186]
[1726222087997,11.5,133.75,133.73,1.4186]
[1726222087998,3.3644,133.75,133.73,1.4186]
[1726222088196,15.52589707,133.84,133.73,1.4186]
[1726222088401,3.364,133.76,133.73,4.7833]
[1726222088792,14.864,133.76,133.73,4.7833]
[1726222088993,14.864,133.76,133.73,1.4186]
[1726222089194,11.5,133.76,133.73,1.4186]
[1726222089400,3.3643,133.75,133.73,1.4186]
[1726222091201,14.8643,133.75,133.73,1.4186]
[1726222093399,11.5,133.75,133.73,4.7833]
[1726222093808,14.8641,133.76,133.73,4.7833]
[1726222094592,3.3641,133.76,133.73,4.7833]
[1726222094797,14.8641,133.76,133.73,4.7833]
[1726222095203,11.5,133.76,133.74,3.3645]
[1726222095504,11.5,133.76,133.73,1.4186]
[1726222096301,14.864,133.76,133.73,4.7832]
[1726222097402,11.5,133.76,133.75,3.3643]
[1726222097701,11.5,133.76,133.73,1.4186]
[1726222098106,11.5,133.76,133.73,4.7832]
[1726222098306,14.8639,133.77,133.73,4.7832]
[1726222099010,11.5,133.76,133.73,4.7832]
[1726222100203,14.8641,133.76,133.73,4.7832]
[1726222101513,11.5,133.75,133.73,4.7832]
[1726222107213,14.8643,133.75,133.73,4.7832]
[1726222111414,14.8643,133.75,133.73,1.4186]
[1726222113823,14.8643,133.75,133.73,4.7834]
[1726222114030,14.8643,133.75,133.73,1.4186]
[1726222116828,14.8642,133.76,133.73,4.7833]
[1726222117231,3.3643,133.75,133.73,4.7833]
[1726222119225,14.8641,133.76,133.73,4.7833]
[1726222120834,3.82425557,133.77,133.73,1.4186]
[1726222121039,11.5,133.78,133.73,1.4186]
[1726222121239,11.5,133.78,133.73,12.9186]
[1726222121430,11.5,133.78,133.73,14.3295]
[1726222121431,14.8637,133.78,133.73,14.3295]
[1726222122245,11.5,133.78,133.75,3.364]
[1726222123342,3.3634,133.79,133.75,3.364]
[1726222123538,14.8634,133.79,133.75,3.364]
[1726222123934,11.5,133.78,133.75,3.364]
[1726222124944,14.8634,133.79,133.75,14.864]
[1726222125639,14.8634,133.79,133.76,3.364]
[1726222125838,14.8634,133.79,133.75,11.5]
[1726222126432,14.8634,133.79,133.75,14.8641]
[1726222126740,14.8634,133.79,133.75,11.5]
[1726222126944,14.8634,133.79,133.76,3.364]
[1726222128233,11.5,133.79,133.77,3.3638]
[1726222128548,14.8631,133.8,133.77,3.3638]
[1726222129446,14.8631,133.8,133.76,14.8639]
[1726222129946,14.8631,133.8,133.77,3.3638]
[1726222130646,14.8631,133.8,133.76,14.8639]
[1726222130844,3.3633,133.79,133.76,14.8639]
[1726222131540,14.8633,133.79,133.76,3.3639]
[1726222131736,11.5,133.79,133.76,3.3639]
[1726222132041,14.8631,133.8,133.76,3.3639]
[1726222132248,3.3633,133.79,133.76,3.3639]
[1726222132449,3.3633,133.79,133.75,14.8641]
[1726222132450,11.5,133.79,133.75,14.8641]
[1726222132949,3.3636,133.78,133.75,14.8641]
[1726222138848,3.3636,133.78,133.75,3.3641]
[1726222139041,3.3636,133.78,133.75,14.8641]
[1726222141560,3.3636,133.78,133.76,14.864]
[1726222142258,3.3636,133.78,133.76,11.5]
[1726222142558,3.3634,133.79,133.76,11.5]
[1726222142759,3.3634,133.79,133.76,14.8638]
[1726222143259,3.3635,133.78,133.76,14.8638]
[1726222144357,3.3638,133.77,133.73,2.8295]
[1726222144659,3.3638,133.77,133.74,11.5]
[1726222145167,3.3638,133.77,133.74,14.8644]
[1726222148170,11.5,133.78,133.73,17.6942]
[1726222148462,11.5,133.78,133.73,16.2833]
[1726222148961,11.5,133.77,133.73,4.7833]
[1726222149154,3.3644,133.75,133.73,1.4186]
[1726222150059,3.3644,133.75,133.68,1.3408]
[1726222150060,11.5,133.74,133.7,11.5]
[1726222150257,11.5,133.74,133.69,1.3212]
[1726222150465,3.365,133.73,133.7,14.8655]
[1726222152170,3.3651,133.72,133.7,11.5]
[1726222153664,11.5,133.72,133.69,1.3212]
[1726222154366,11.5,133.71,133.66,3.3664]
[1726222154562,11.5,133.71,133.66,14.8664]
[1726222155263,3.3657,133.7,133.67,3.3662]
[1726222155463,3.3657,133.7,133.67,14.8662]
[1726222156053,3.3654,133.71,133.68,3.366]
[1726222158770,3.3656,133.7,133.67,14.8661]
[1726222158961,11.5,133.72,133.67,14.8661]
[1726222159867,11.5,133.72,133.67,11.5]
[1726222160362,3.3657,133.7,133.67,11.5]
[1726222161163,3.3657,133.7,133.67,14.8663]
[1726222162473,3.3659,133.69,133.66,14.8665]
[1726222163159,3.3665,133.66,133.65,1.348]
[1726222165967,3.3664,133.67,133.65,1.348]
[1726222166165,11.5,133.7,133.65,12.848]
[1726222166472,3.3661,133.68,133.65,16.2147]
[1726222166764,3.3661,133.68,133.65,12.848]
[1726222167772,11.5,133.67,133.63,11.5]
[1726222168571,3.3667,133.66,133.63,14.8671]
[1726222169672,3.3664,133.67,133.64,3.367]
[1726222171165,3.3666,133.66,133.63,14.8671]
[1726222171978,3.3666,133.66,133.64,3.367]
[1726222172276,6.7285,133.76,133.65,11.5]
[1726222172578,3.3661,133.68,133.65,11.5]
[1726222172871,25.9418365,133.76,133.67,3.3662]
[1726222173076,11.5,133.71,133.67,3.3662]
[1726222173379,15.49505897,133.75,133.67,3.3662]
[1726222173569,11.5,133.71,133.67,3.3662]
[1726222173764,3.3656,133.7,133.67,3.3662]
[1726222175183,3.3654,133.71,133.67,3.3662]
[1726222175369,11.5,133.7,133.67,3.3662]
[1726222176270,15.49678733,133.75,133.67,3.3662]
[1726222176469,11.5,133.7,133.67,3.3662]
[1726222176865,3.71827753,133.76,133.66,11.5]
[1726222177064,11.5,133.71,133.66,11.5]
[1726222177782,14.8655,133.71,133.67,3.3661]
[1726222182881,45.26095154,133.86,133.7,11.5]
[1726222182882,3.3647,133.74,133.7,11.5]
[1726222183087,14.8647,133.74,133.7,11.5]
[1726222183589,18.66260419,133.74,133.7,11.5]
[1726222183778,14.8647,133.74,133.71,3.3652]
[1726222184277,14.8647,133.74,133.7,11.5]
[1726222184483,14.8647,133.74,133.7,14.8654]
[1726222186190,14.8647,133.74,133.7,11.5]
[1726222186891,14.8647,133.74,133.7,14.8653]
[1726222187198,14.8651,133.72,133.68,1.3277]
[1726222188796,14.8651,133.72,133.69,3.3657]
[1726222190491,11.5,133.71,133.6,5.17067235]
[1726222190689,11.5,133.7,133.65,11.5]
[1726222191088,11.5,133.7,133.66,11.5]
[1726222191581,14.8653,133.71,133.67,3.3663]
[1726222191781,15.49531884,133.77,133.67,11.5]
[1726222191984,11.5,133.73,133.68,11.5]
[1726222192183,11.5,133.73,133.69,3.3657]
[1726222192184,3.3652,133.72,133.69,3.3657]
[1726222192401,15.31539804,133.73,133.68,11.5]
[1726222192402,3.81539804,133.73,133.68,11.5]
[1726222192596,11.5,133.73,133.68,11.5]
[1726222192792,11.5,133.73,133.7,3.3654]
[1726222193187,11.5,133.74,133.69,12.8543]
[1726222194296,14.8646,133.74,133.71,3.3652]
[1726222196199,11.5,133.72,133.61,1.3889]
[1726222196498,11.5,133.72,133.66,11.5]
[1726222196694,3.3654,133.71,133.66,11.5]
[1726222197000,11.5,133.72,133.66,11.5]
[1726222197391,26.99605119,133.72,133.66,11.5]
[1726222197599,11.5,133.72,133.66,11.5]
[1726222197986,3.3649,133.73,133.7,3.3655]
[1726222198201,14.8649,133.73,133.7,3.3655]
[1726222198697,19.27095711,133.75,133.68,11.5]
[1726222198894,27.0012166,133.74,133.68,11.5]
[1726222199100,11.5,133.74,133.68,11.5]
[1726222199603,11.5,133.74,133.69,1.4019]
[1726222200501,14.8647,133.74,133.7,3.3654]
[1726222201297,14.8647,133.74,133.71,3.3652]
[1726222201997,18.87202815,133.75,133.72,3.365]
[1726222202295,15.50762815,133.74,133.72,3.365]
[1726222202501,14.8644,133.75,133.72,3.365]
[1726222203294,14.8644,133.75,133.71,3.3652]
[1726222203490,14.8644,133.75,133.7,11.5]
[1726222203891,18.87545797,133.76,133.69,1.4019]
[1726222204094,15.51135797,133.75,133.71,11.5]
[1726222204297,14.8641,133.76,133.69,1.4019]
[1726222204497,14.8641,133.76,133.71,11.5]
[1726222205993,3.3639,133.77,133.71,12.8054]
[1726222206200,14.8639,133.77,133.72,11.5]
[1726222207301,3.3641,133.76,133.73,3.3646]
[1726222209206,14.8641,133.76,133.73,3.3646]
[1726222209410,3.3643,133.75,133.72,3.3649]
[1726222209801,14.8645,133.74,133.71,4.6705]
[1726222213898,3.3648,133.73,133.7,14.8654]
[1726222214112,11.5,133.72,133.7,3.3654]
[1726222215609,14.8652,133.72,133.69,4.7676]
[1726222215911,11.5,133.7,133.66,12.8035]
[1726222216107,14.8656,133.7,133.67,3.366]
[1726222217906,3.3654,133.71,133.68,3.366]
[1726222218108,3.3654,133.71,133.67,11.5]
[1726222218311,3.3654,133.71,133.67,12.9247]
[1726222218515,3.3656,133.7,133.67,16.2909]
[1726222219721,3.3654,133.71,133.67,16.2909]
[1726222220015,3.3654,133.71,133.68,3.366]
[1726222220213,15.50766376,133.77,133.67,12.9247]
[1726222220407,11.5,133.7,133.65,11.5]
[1726222221104,11.5,133.7,133.66,3.3664]
[1726222222821,3.3658,133.69,133.66,3.3664]
[1726222223520,3.3658,133.69,133.65,14.8667]
[1726222223719,3.3661,133.68,133.65,14.8667]
[1726222224417,11.5,133.7,133.65,14.8667]
[1726222224615,3.3664,133.67,133.64,3.3669]
[1726222224815,11.5,133.67,133.62,2.8054]
[1726222225112,3.3667,133.66,133.63,3.3671]
[1726222226529,3.3668,133.65,133.63,3.3671]
[1726222226710,11.5,133.67,133.62,2.8054]
[1726222227114,3.3667,133.66,133.63,3.3672]
[1726222228825,11.5,133.64,133.59,11.5]
[1726222229023,11.5,133.64,133.59,12.8831]
[1726222229222,11.5,133.64,133.6,3.3679]
[1726222229426,11.5,133.63,133.6,3.3679]
[1726222230124,14.8674,133.63,133.6,3.3679]
[1726222230324,3.3674,133.63,133.6,14.8679]
[1726222231424,14.8674,133.63,133.6,3.3679]
[1726222232544,3.3676,133.62,133.59,4.7513]
[1726222232728,45.1751372,133.82,133.59,4.7513]
[1726222232729,11.5,133.61,133.59,1.3831]
[1726222232920,3.368,133.6,133.59,1.3831]
[1726222233116,11.5,133.6,133.58,15.51076639]
[1726222233330,11.5,133.59,133.58,15.51076639]
[1726222233636,14.8683,133.59,133.58,11.77076639]
[1726222233924,18.63899188,133.59,133.58,11.77076639]
[1726222236625,14.8683,133.59,133.58,8.17076639]
[1726222237019,18.57728018,133.59,133.58,8.17076639]
[1726222237224,18.57728018,133.59,133.57,3.55336808]
[1726222237225,3.3685,133.58,133.57,3.55336808]
[1726222237425,14.8685,133.58,133.57,3.55336808]
[1726222237622,11.5,133.58,133.55,3.97405874]
[1726222237823,11.5,133.56,133.55,3.97405874]
[1726222238125,14.8691,133.56,133.55,3.97405874]
[1726222238429,14.8691,133.56,133.54,3.57360581]
[1726222238430,11.5,133.56,133.52,3.17105717]
[1726222238630,11.5,133.53,133.52,3.17105717]
[1726222239022,3.3698,133.53,133.52,3.17105717]
[1726222239324,15.22396444,133.53,133.44,14.1776]
[1726222239524,11.5,133.5,133.44,14.1776]
[1726222239724,11.5,133.5,133.45,11.5]
[1726222239925,3.68243496,133.51,133.44,2.6776]
[1726222240224,11.5,133.5,133.46,3.3715]
[1726222240422,11.5,133.5,133.44,2.6776]
[1726222240626,3.72441712,133.51,133.46,3.3714]
[1726222240831,11.5,133.5,133.46,3.3714]
[1726222241133,15.27577029,133.5,133.44,2.6776]
[1726222241732,15.27577029,133.5,133.44,6.0496]
[1726222241935,15.27577029,133.5,133.44,2.6776]
[1726222242135,21.76577029,133.5,133.44,2.6776]
[1726222242829,17.99,133.51,133.47,3.3712]
[1726222243622,21.70644924,133.51,133.44,2.6776]
[1726222244025,17.99,133.51,133.44,2.6776]
[1726222244229,21.67758434,133.51,133.44,2.6776]
[1726222244427,17.99,133.5,133.45,3.3718]
[1726222244630,17.99,133.5,133.44,1.3728]
[1726222244825,17.99,133.46,133.39,2.7345]
[1726222245031,17.99,133.46,133.41,3.3727]
[1726222245238,17.99,133.44,133.29,135.42198347]
[1726222245433,17.99,133.42,133.38,3.3736]
[1726222245633,17.99,133.44,133.36,17.99]
[1726222245834,17.99,133.45,133.37,1.3964]
[1726222246036,17.99,133.45,133.41,3.3726]
[1726222246237,17.99,133.45,133.38,1.3395]
[1726222247142,17.99,133.45,133.37,1.3964]
[1726222247339,17.99,133.45,133.37,2.7359]
[1726222248136,17.99,133.45,133.41,3.3727]
[1726222248637,17.99,133.45,133.37,2.7359]
[1726222250743,17.99,133.45,133.41,3.3726]
[1726222250938,17.99,133.45,133.37,2.7359]
[1726222251344,17.99,133.45,133.37,20.7259]
[1726222251742,17.99,133.47,133.45,3.3717]
[1726222251941,17.99,133.47,133.37,20.7259]
[1726222252137,17.99,133.47,133.44,3.3718]
[1726222252341,17.99,133.47,133.37,20.7259]
[1726222253242,17.99,133.47,133.46,3.3716]
[1726222253444,17.99,133.49,133.39,17.99]
[1726222253749,17.99,133.49,133.4,1.3734]
[1726222254147,17.99,133.49,133.46,3.3715]
[1726222257142,17.99,133.49,133.47,3.3712]
[1726222260050,17.99,133.49,133.46,3.3714]
[1726222260647,17.99,133.49,133.47,3.3713]
[1726222262749,17.99,133.49,133.48,3.3711]
[1726222262948,3.82076524,133.5,133.43,1.3422]
[1726222263248,17.99,133.51,133.43,19.3322]
[1726222263458,17.99,133.51,133.5,3.3706]
[1726222263752,17.99,133.53,133.5,3.3706]
[1726222264047,17.99,133.53,133.45,17.99]
[1726222264255,157.99833941,133.54,133.46,1.3382]
[1726222264550,157.99833941,133.54,133.52,3.3699]
[1726222264745,157.99833941,133.54,133.47,19.3044]
[1726222264953,157.99833941,133.54,133.48,1.3784]
[1726222265849,157.99833941,133.54,133.52,3.3699]
[1726222266159,157.99833941,133.54,133.48,1.3784]
[1726222266343,17.99,133.51,133.48,1.3784]
[1726222266648,17.99,133.49,133.46,1.3382]
[1726222267648,17.99,133.49,133.47,3.3711]
[1726222267846,17.99,133.49,133.46,1.3382]
[1726222268756,17.99,133.49,133.47,3.3712]
[1726222272455,17.99,133.49,133.42,1.3449]
[1726222273063,17.99,133.49,133.48,3.3711]
[1726222273745,17.99,133.49,133.47,3.3712]
[1726222275055,17.99,133.49,133.48,3.3711]
[1726222275453,17.99,133.49,133.42,1.3449]
[1726222275645,17.99,133.48,133.42,1.3449]
[1726222276158,21.3613,133.48,133.44,3.372]
[1726222277257,21.3613,133.48,133.42,1.3449]
[1726222278052,21.3616,133.46,133.4,2.7762]
[1726222278358,17.99,133.46,133.4,2.7762]
[1726222278558,3.79037262,133.51,133.4,20.7662]
[1726222278559,17.99,133.5,133.4,20.7662]
[1726222279249,21.80767729,133.5,133.4,20.7662]
[1726222279654,25.17837729,133.5,133.47,3.3712]
[1726222282759,3.3709,133.49,133.46,3.3715]
[1726222283557,25.17837729,133.5,133.4,20.7662]
[1726222284556,25.17837729,133.5,133.46,3.3714]
[1726222286456,3.3709,133.49,133.46,3.3714]
[1726222288062,11.51,133.47,133.46,3.3714]
[1726222288453,3.3709,133.49,133.46,3.3714]
[1726222288665,158.01494688,133.53,133.47,1.4418]
[1726222288958,11.51,133.5,133.47,1.4418]
[1726222289459,158.01494688,133.53,133.47,1.4418]
[1726222289660,11.51,133.51,133.47,1.4418]
[1726222289866,11.51,133.51,133.47,2.799]
[1726222290167,158.01494688,133.53,133.47,2.799]
[1726222290168,179.36484688,133.53,133.47,2.799]
[1726222290463,17.98,133.53,133.47,2.799]
[1726222290765,17.98,133.51,133.48,3.3709]
[1726222290964,17.98,133.51,133.47,2.799]
[1726222292265,17.98,133.51,133.49,3.3707]
[1726222292770,17.98,133.52,133.49,3.3707]
[1726222294063,21.3501,133.52,133.49,3.3707]
[1726222294261,3.73631728,133.58,133.47,2.799]
[1726222294463,17.98,133.54,133.47,2.799]
[1726222294772,17.98,133.55,133.47,2.799]
[1726222294963,17.98,133.55,133.48,17.98]
[1726222295663,17.98,133.55,133.52,3.3699]
[1726222295878,21.3494,133.55,133.52,3.3699]
[1726222296567,17.98,133.55,133.52,3.3699]
[1726222296772,17.98,133.55,133.53,3.3698]
[1726222296956,17.98,133.57,133.48,17.98]
[1726222297159,17.98,133.57,133.49,17.98]
[1726222297370,21.72437814,133.59,133.55,3.3691]
[1726222297574,17.98,133.59,133.55,3.3691]
[1726222297769,21.3484,133.59,133.5,1.4142]
[1726222298071,25.05831074,133.59,133.5,1.4142]
[1726222298468,25.05831074,133.59,133.56,3.369]
[1726222299369,17.98,133.59,133.57,3.3688]
[1726222299870,21.3484,133.59,133.55,3.3691]
[1726222300266,21.3484,133.59,133.52,2.8907]
[1726222301071,21.3484,133.59,133.55,3.3691]
[1726222301262,17.98,133.59,133.52,2.8907]
[1726222301977,17.98,133.57,133.52,2.8907]
[1726222302366,3.3691,133.56,133.52,2.8907]
[1726222302674,17.98,133.57,133.52,2.8907]
[1726222302969,21.349,133.57,133.53,3.3697]
[1726222303174,17.98,133.57,133.53,3.3697]
[1726222303669,15.50335446,133.56,133.53,3.3697]
[1726222304077,18.87255446,133.56,133.53,3.3697]
[1726222304274,17.98,133.55,133.53,3.3697]
[1726222305070,17.98,133.55,133.54,3.3696]
[1726222305476,17.98,133.57,133.52,1.4487]
[1726222305879,17.98,133.59,133.52,1.4487]
[1726222306087,3.3681,133.6,133.53,1.404]
[1726222306378,17.98,133.59,133.53,1.404]
[1726222306767,15.50362578,133.58,133.57,3.3687]
[1726222308576,17.98,133.59,133.57,3.3687]
[1726222309168,17.98,133.59,133.53,1.404]
[1726222309378,17.98,133.59,133.56,3.369]
[1726222309576,17.98,133.59,133.53,1.404]
[1726222309983,17.98,133.59,133.55,3.3692]
[1726222310288,17.98,133.59,133.53,1.404]
[1726222310582,17.98,133.59,133.57,3.3687]
[1726222310984,17.98,133.59,133.53,1.404]
[1726222311388,21.3483,133.59,133.53,1.404]
[1726222311770,3.3686,133.58,133.53,1.404]
[1726222311980,17.98,133.57,133.53,1.404]
[1726222312379,21.3489,133.57,133.53,4.7737]
[1726222312589,21.3489,133.57,133.53,1.404]
[1726222312980,3.3692,133.56,133.52,1.4487]
[1726222313193,21.3492,133.56,133.52,1.4487]
[1726222313381,21.3492,133.56,133.52,4.8186]
[1726222314072,17.98,133.56,133.52,1.4487]
[1726222314279,17.98,133.58,133.52,1.4487]
[1726222314586,17.98,133.6,133.52,1.4487]
[1726222314887,17.98,133.6,133.52,19.4287]
[1726222314888,21.3482,133.6,133.52,19.4287]
[1726222315291,21.3482,133.6,133.56,3.3689]
[1726222315783,17.98,133.6,133.56,3.3689]
[1726222315988,17.98,133.6,133.55,3.3692]
[1726222316482,3.3684,133.59,133.55,3.3692]
[1726222319285,21.3479,133.61,133.57,3.3686]
[1726222319781,3.3681,133.6,133.56,3.3689]
[1726222319985,21.6902006,133.61,133.56,3.3689]
[1726222320485,3.3682,133.6,133.56,3.3689]
[1726222321487,21.348,133.61,133.57,3.3688]
[1726222322190,21.348,133.61,133.52,19.4287]
[1726222322191,17.98,133.61,133.58,3.3685]
[1726222322391,751.49094658,133.67,133.53,17.98]
[1726222322689,17.98,133.61,133.54,1.3406]
[1726222322890,21.348,133.61,133.57,3.3687]
[1726222323489,3.3681,133.6,133.57,3.3687]
[1726222323690,18.8772808,133.6,133.57,3.3687]
[1726222323884,15.5091808,133.59,133.57,3.3687]
[1726222324191,18.8772808,133.6,133.57,3.3687]
[1726222324788,3.3684,133.59,133.54,1.3406]
[1726222324991,18.8775808,133.59,133.54,1.3406]
[1726222325193,18.8775808,133.59,133.56,3.369]
[1726222326081,15.5091808,133.59,133.54,1.3406]
[1726222326281,15.5091808,133.6,133.54,1.3406]
[1726222326489,15.5091808,133.6,133.55,19.4215]
[1726222326687,15.5091808,133.62,133.55,19.4215]
[1726222326984,19.3337238,133.62,133.55,19.4215]
[1726222327188,3.3678,133.61,133.57,3.3688]
[1726222327588,17.98,133.61,133.55,1.4415]
[1726222327795,17.98,133.61,133.56,3.3689]
[1726222327796,18.8773808,133.6,133.56,3.3689]
[1726222328001,18.8773808,133.6,133.55,1.4415]
[1726222328191,15.5091808,133.6,133.55,1.4415]
[1726222329097,15.5091808,133.6,133.57,3.3686]
[1726222330089,30.3872808,133.6,133.57,3.3686]
[1726222330492,15.5091808,133.59,133.57,3.3686]
[1726222330892,14.8781,133.6,133.57,3.3686]
[1726222331100,14.8783,133.59,133.56,3.369]
[1726222331286,11.51,133.59,133.54,1.3406]
[1726222331488,11.51,133.57,133.54,1.3406]
[1726222331793,11.51,133.57,133.54,4.71]
[1726222332001,11.51,133.57,133.54,1.3406]
[1726222332809,11.51,133.57,133.55,3.3693]
[1726222333006,14.8788,133.57,133.55,3.3693]
[1726222333202,14.8788,133.57,133.54,1.3406]
[1726222333498,14.8788,133.57,133.54,4.71]
[1726222333899,14.8788,133.57,133.54,1.3406]
[1726222334302,11.51,133.57,133.55,3.3692]
[1726222334500,3.3686,133.58,133.55,3.3692]
[1726222334698,14.8783,133.6,133.55,11.51]
[1726222335001,3.3683,133.6,133.56,11.51]
[1726222335402,3.3683,133.6,133.57,3.3688]
[1726222335805,14.8779,133.61,133.56,11.51]
[1726222336101,11.51,133.62,133.58,14.8784]
[1726222336307,11.51,133.62,133.58,11.51]
[1726222336989,14.8773,133.63,133.59,14.8782]
[1726222337189,11.51,133.63,133.59,11.51]
[1726222337800,11.51,133.63,133.6,3.3679]
[1726222338200,15.52197156,133.69,133.57,19.3756]
[1726222338502,3.79197458,133.7,133.57,19.3756]
[1726222338503,17.97,133.67,133.59,17.97]
[1726222338705,15.52771335,133.66,133.6,1.4482]
[1726222339304,3.3669,133.65,133.6,1.4482]
[1726222339698,15.52771335,133.66,133.6,1.4482]
[1726222340306,15.52771335,133.66,133.61,3.3677]
[1726222340307,3.3671,133.64,133.61,3.3677]
[1726222342208,3.3669,133.65,133.62,3.3675]
[1726222342803,3.3669,133.65,133.63,3.3673]
[1726222342995,18.89441335,133.66,133.63,3.3673]
[1726222343598,3.3667,133.66,133.63,3.3673]
[1726222344001,18.89698587,133.66,133.63,3.3673]
[1726222344408,3.3667,133.66,133.63,3.3673]
[1726222344715,3.3668,133.65,133.63,3.3673]
[1726222345211,3.3668,133.65,133.62,3.3674]
[1726222345702,17.97,133.67,133.62,3.3674]
[1726222345907,3.3666,133.66,133.63,3.3672]